[Event "Early Titled Tuesday Blitz | February 8 2022"]
[White "Papasimakopoulos, Alexandros"]
[Black "Jobava, Baadur"]
[WhiteFideId "4244125"]
[BlackFideId "13601520"]
[WhiteElo "2340"]
[BlackElo "2617"]
[Result "0-1"]
[Round "03"]
[TimeControl "180+1"]
[Date "2022.02.08"]
[WhiteClock "0:00:08"]
[BlackClock "0:00:06"]

1. d4 {[%clk 0:02:58]}  Nf6 {[%clk 0:02:58]} 2. c4 {[%clk 0:02:58]}  c5 {[%clk 0:02:58]} 3. d5 {[%clk 0:02:58]}  e6 {[%clk 0:02:59]} 4. Nc3 {[%clk 0:02:58]}  exd5 {[%clk 0:02:59]} 5. cxd5 {[%clk 0:02:59]}  d6 {[%clk 0:03:00]} 6. Nf3 {[%clk 0:03:00]}  g6 {[%clk 0:03:00]} 7. Bf4 {[%clk 0:03:00]}  Bg7 {[%clk 0:02:57]} 8. Qa4+ {[%clk 0:03:00]}  Bd7 {[%clk 0:02:57]} 9. Qb3 {[%clk 0:03:00]}  b5 {[%clk 0:02:54]} 10. Bxd6 {[%clk 0:03:00]}  Qb6 {[%clk 0:02:50]} 11. Be5 {[%clk 0:03:01]}  O-O {[%clk 0:02:48]} 12. e3 {[%clk 0:03:01]}  Re8 {[%clk 0:02:44]} 13. Bxb5 {[%clk 0:02:53]}  Qd8 {[%clk 0:02:00]} 14. O-O {[%clk 0:02:48]}  a6 {[%clk 0:01:54]} 15. Be2 {[%clk 0:02:44]}  Bf5 {[%clk 0:01:48]} 16. Na4 {[%clk 0:02:24]}  Nbd7 {[%clk 0:01:46]} 17. Bg3 {[%clk 0:02:18]}  Ne4 {[%clk 0:01:43]} 18. Rac1 {[%clk 0:02:14]}  h5 {[%clk 0:01:40]} 19. Nc3 {[%clk 0:01:55]}  Nxg3 {[%clk 0:01:35]} 20. hxg3 {[%clk 0:01:55]}  Rb8 {[%clk 0:01:36]} 21. Qa3 {[%clk 0:01:54]}  g5 {[%clk 0:01:30]} 22. Rfd1 {[%clk 0:01:49]}  h4 {[%clk 0:01:29]} 23. gxh4 {[%clk 0:01:48]}  gxh4 {[%clk 0:01:30]} 24. d6 {[%clk 0:01:48]}  h3 {[%clk 0:01:27]} 25. g3 {[%clk 0:01:46]}  Qf6 {[%clk 0:01:20]} 26. Nd5 {[%clk 0:01:45]}  Qxd6 {[%clk 0:01:19]} 27. b3 {[%clk 0:01:29]}  Qh6 {[%clk 0:01:06]} 28. Qxa6 {[%clk 0:01:27]}  Re6 {[%clk 0:00:50]} 29. Qa7 {[%clk 0:01:24]}  Rd8 {[%clk 0:00:31]} 30. Qc7 {[%clk 0:01:23]}  h2+ {[%clk 0:00:27]} 31. Nxh2 {[%clk 0:01:17]}  Ree8 {[%clk 0:00:25]} 32. Nf3 {[%clk 0:01:13]}  Kh7 {[%clk 0:00:22]} 33. Nf4 {[%clk 0:01:11]}  Kg8 {[%clk 0:00:18]} 34. Rd6 {[%clk 0:01:10]}  Qh8 {[%clk 0:00:14]} 35. Rcd1 {[%clk 0:01:10]}  Rc8 {[%clk 0:00:15]} 36. Qb7 {[%clk 0:01:08]}  Ne5 {[%clk 0:00:15]} 37. Ng5 {[%clk 0:00:49]}  Rf8 {[%clk 0:00:14]} 38. Nd5 {[%clk 0:00:46]}  Rce8 {[%clk 0:00:10]} 39. Ne7+ {[%clk 0:00:45]}  Rxe7 {[%clk 0:00:10]} 40. Qxe7 {[%clk 0:00:46]}  Ng6 {[%clk 0:00:10]} 41. Qb7 {[%clk 0:00:43]}  Be5 {[%clk 0:00:09]} 42. Rd8 {[%clk 0:00:43]}  Qf6 {[%clk 0:00:07]} 43. Rxf8+ {[%clk 0:00:41]}  Nxf8 {[%clk 0:00:08]} 44. Nf3 {[%clk 0:00:40]}  Bc3 {[%clk 0:00:09]} 45. Qb8 {[%clk 0:00:36]}  Kg7 {[%clk 0:00:08]} 46. Qf4 {[%clk 0:00:36]}  Ng6 {[%clk 0:00:06]} 47. Qg5 {[%clk 0:00:37]}  Qe6 {[%clk 0:00:06]} 48. Bc4 {[%clk 0:00:36]}  Qe4 {[%clk 0:00:06]} 49. Nd2 {[%clk 0:00:36]}  Qc2 {[%clk 0:00:06]} 50. Kg2 {[%clk 0:00:28]}  Bxd2 {[%clk 0:00:04]} 51. Rxd2 {[%clk 0:00:27]}  Be4+ {[%clk 0:00:05]} 52. Kh3 {[%clk 0:00:18]}  Qxd2 {[%clk 0:00:06]} 53. Qg4 {[%clk 0:00:16]}  Bd3 {[%clk 0:00:05]} 54. Bxd3 {[%clk 0:00:11]}  Qxd3 {[%clk 0:00:06]} 55. Qc4 {[%clk 0:00:10]}  Qb1 {[%clk 0:00:06]} 56. a4 {[%clk 0:00:08]}  Qh1+ {[%clk 0:00:05]} 57. Kg4 {[%clk 0:00:08]}  Ne5+ {[%clk 0:00:06]} 0-1


[Site "https://www.chess.com"]

[Event "Early Titled Tuesday Blitz | February 8 2022"]
[White "Paravyan, David"]
[Black "Buscar, Michael"]
[WhiteFideId "4194985"]
[BlackFideId "2603616"]
[WhiteElo "3013"]
[BlackElo "2428"]
[Result "1-0"]
[Round "03"]
[TimeControl "180+1"]
[Date "2022.02.08"]
[WhiteClock "0:00:32"]
[BlackClock "0:00:02"]

1. e4 {[%clk 0:03:00]}  c5 {[%clk 0:02:53]} 2. Nf3 {[%clk 0:03:00]}  Nc6 {[%clk 0:02:49]} 3. d4 {[%clk 0:02:57]}  cxd4 {[%clk 0:02:49]} 4. Nxd4 {[%clk 0:02:58]}  Nf6 {[%clk 0:02:49]} 5. Nc3 {[%clk 0:02:59]}  e5 {[%clk 0:02:50]} 6. Ndb5 {[%clk 0:02:59]}  h6 {[%clk 0:02:51]} 7. Nd6+ {[%clk 0:02:52]}  Bxd6 {[%clk 0:02:50]} 8. Qxd6 {[%clk 0:02:53]}  Qe7 {[%clk 0:02:51]} 9. Qxe7+ {[%clk 0:02:53]}  Kxe7 {[%clk 0:02:52]} 10. b3 {[%clk 0:02:53]}  Rd8 {[%clk 0:02:50]} 11. Ba3+ {[%clk 0:02:51]}  d6 {[%clk 0:02:50]} 12. O-O-O {[%clk 0:02:50]}  Be6 {[%clk 0:02:45]} 13. f3 {[%clk 0:02:21]}  Rac8 {[%clk 0:02:37]} 14. Nb5 {[%clk 0:02:20]}  Ne8 {[%clk 0:02:28]} 15. c4 {[%clk 0:02:06]}  a6 {[%clk 0:02:21]} 16. Nc3 {[%clk 0:02:06]}  Nd4 {[%clk 0:02:21]} 17. Kb2 {[%clk 0:02:06]}  Nf6 {[%clk 0:01:53]} 18. Bd3 {[%clk 0:02:04]}  Nd7 {[%clk 0:01:53]} 19. Ne2 {[%clk 0:02:00]}  Nxe2 {[%clk 0:01:43]} 20. Bxe2 {[%clk 0:02:01]}  Nc5 {[%clk 0:01:44]} 21. Rd2 {[%clk 0:02:00]}  f5 {[%clk 0:01:28]} 22. exf5 {[%clk 0:02:01]}  Bxf5 {[%clk 0:01:29]} 23. Rhd1 {[%clk 0:02:02]}  Rc6 {[%clk 0:01:18]} 24. Bb4 {[%clk 0:01:59]}  Ne6 {[%clk 0:01:10]} 25. Bf1 {[%clk 0:01:52]}  Nd4 {[%clk 0:01:06]} 26. Bc3 {[%clk 0:01:50]}  Ne6 {[%clk 0:01:05]} 27. g3 {[%clk 0:01:48]}  Rb8 {[%clk 0:00:54]} 28. Bb4 {[%clk 0:01:45]}  Nd4 {[%clk 0:00:52]} 29. f4 {[%clk 0:01:35]}  Ke6 {[%clk 0:00:48]} 30. Bg2 {[%clk 0:01:35]}  Rc7 {[%clk 0:00:39]} 31. Bd5+ {[%clk 0:01:29]}  Kd7 {[%clk 0:00:35]} 32. Bxd6 {[%clk 0:01:18]}  Kxd6 {[%clk 0:00:29]} 33. fxe5+ {[%clk 0:01:18]}  Kxe5 {[%clk 0:00:30]} 34. Rxd4 {[%clk 0:01:18]}  b5 {[%clk 0:00:30]} 35. R4d2 {[%clk 0:01:18]}  bxc4 {[%clk 0:00:30]} 36. Re2+ {[%clk 0:00:55]}  Kf6 {[%clk 0:00:29]} 37. Rf1 {[%clk 0:00:49]}  Kg6 {[%clk 0:00:25]} 38. Rc1 {[%clk 0:00:37]}  Bd3 {[%clk 0:00:19]} 39. Be4+ {[%clk 0:00:37]}  Bxe4 {[%clk 0:00:18]} 40. Rxe4 {[%clk 0:00:38]}  Rd8 {[%clk 0:00:14]} 41. Rexc4 {[%clk 0:00:36]}  Rd2+ {[%clk 0:00:13]} 42. R1c2 {[%clk 0:00:36]}  Rcd7 {[%clk 0:00:13]} 43. Rc6+ {[%clk 0:00:35]}  R7d6 {[%clk 0:00:10]} 44. Rxd2 {[%clk 0:00:33]}  Rxc6 {[%clk 0:00:10]} 45. Ka3 {[%clk 0:00:31]}  Kg5 {[%clk 0:00:10]} 46. Kb4 {[%clk 0:00:31]}  Kg4 {[%clk 0:00:09]} 47. Ka5 {[%clk 0:00:31]}  g5 {[%clk 0:00:07]} 48. b4 {[%clk 0:00:32]}  Kf3 {[%clk 0:00:06]} 49. a4 {[%clk 0:00:32]}  Ke3 {[%clk 0:00:07]} 50. Rb2 {[%clk 0:00:32]}  Kd4 {[%clk 0:00:05]} 51. b5 {[%clk 0:00:31]}  axb5 {[%clk 0:00:04]} 52. axb5 {[%clk 0:00:32]}  Rc8 {[%clk 0:00:04]} 53. b6 {[%clk 0:00:32]}  Kc5 {[%clk 0:00:04]} 54. b7 {[%clk 0:00:32]}  Rb8 {[%clk 0:00:02]} 55. Rc2+ {[%clk 0:00:31]}  Kd6 {[%clk 0:00:02]} 56. Kb6 {[%clk 0:00:32]} 1-0


[Site "https://www.chess.com"]

[Event "Early Titled Tuesday Blitz | February 8 2022"]
[White "Pasini, Nicolo"]
[Black "Petesch, Gabriel"]
[WhiteFideId "2809600"]
[BlackFideId "2032465"]
[WhiteElo "2065"]
[BlackElo "2374"]
[Result "0-1"]
[Round "03"]
[TimeControl "180+1"]
[Date "2022.02.08"]
[WhiteClock "0:00:01"]
[BlackClock "0:00:02"]

1. e4 {[%clk 0:02:57]}  c6 {[%clk 0:02:54]} 2. d4 {[%clk 0:02:56]}  d5 {[%clk 0:02:54]} 3. exd5 {[%clk 0:02:57]}  cxd5 {[%clk 0:02:55]} 4. Bd3 {[%clk 0:02:56]}  Nc6 {[%clk 0:02:55]} 5. c3 {[%clk 0:02:56]}  Nf6 {[%clk 0:02:56]} 6. Bf4 {[%clk 0:02:56]}  e6 {[%clk 0:02:50]} 7. Nf3 {[%clk 0:02:54]}  Bd6 {[%clk 0:02:50]} 8. Bxd6 {[%clk 0:02:54]}  Qxd6 {[%clk 0:02:51]} 9. O-O {[%clk 0:02:53]}  O-O {[%clk 0:02:51]} 10. Qe2 {[%clk 0:02:53]}  Bd7 {[%clk 0:02:50]} 11. Ne5 {[%clk 0:02:52]}  Rae8 {[%clk 0:02:44]} 12. f4 {[%clk 0:02:50]}  Bc8 {[%clk 0:02:43]} 13. Nd2 {[%clk 0:02:47]}  Nd7 {[%clk 0:02:41]} 14. Rf3 {[%clk 0:02:21]}  g6 {[%clk 0:02:37]} 15. Raf1 {[%clk 0:02:07]}  f6 {[%clk 0:02:15]} 16. Bxg6 {[%clk 0:01:36]}  hxg6 {[%clk 0:02:06]} 17. Rg3 {[%clk 0:01:27]}  Ndxe5 {[%clk 0:00:49]} 18. fxe5 {[%clk 0:01:23]}  Nxe5 {[%clk 0:00:30]} 19. dxe5 {[%clk 0:01:19]}  Qxe5 {[%clk 0:00:27]} 20. Rxg6+ {[%clk 0:01:03]}  Kh7 {[%clk 0:00:21]} 21. Qd3 {[%clk 0:00:23]}  f5 {[%clk 0:00:13]} 22. Rg5 {[%clk 0:00:20]}  Rf6 {[%clk 0:00:10]} 23. Nf3 {[%clk 0:00:18]}  Qd6 {[%clk 0:00:04]} 24. Qd4 {[%clk 0:00:17]}  e5 {[%clk 0:00:03]} 25. Qh4+ {[%clk 0:00:17]}  Rh6 {[%clk 0:00:04]} 26. Rh5 {[%clk 0:00:17]}  Rg8 {[%clk 0:00:02]} 27. Rxh6+ {[%clk 0:00:16]}  Qxh6 {[%clk 0:00:03]} 28. Qe7+ {[%clk 0:00:14]}  Qg7 {[%clk 0:00:04]} 29. Qxg7+ {[%clk 0:00:12]}  Kxg7 {[%clk 0:00:04]} 30. Nxe5 {[%clk 0:00:12]}  Kf6 {[%clk 0:00:05]} 31. Nf3 {[%clk 0:00:11]}  b6 {[%clk 0:00:05]} 32. Nd4 {[%clk 0:00:11]}  Bd7 {[%clk 0:00:05]} 33. g3 {[%clk 0:00:11]}  Re8 {[%clk 0:00:05]} 34. Rf2 {[%clk 0:00:10]}  b5 {[%clk 0:00:06]} 35. Re2 {[%clk 0:00:09]}  Rh8 {[%clk 0:00:04]} 36. Kg2 {[%clk 0:00:09]}  a5 {[%clk 0:00:05]} 37. Nf3 {[%clk 0:00:08]}  b4 {[%clk 0:00:05]} 38. Nd4 {[%clk 0:00:07]}  Rc8 {[%clk 0:00:03]} 39. Re3 {[%clk 0:00:06]}  Rb8 {[%clk 0:00:03]} 40. b3 {[%clk 0:00:06]}  Rc8 {[%clk 0:00:03]} 41. cxb4 {[%clk 0:00:05]}  axb4 {[%clk 0:00:03]} 42. Re2 {[%clk 0:00:05]}  Rc3 {[%clk 0:00:03]} 43. Rc2 {[%clk 0:00:05]}  Rd3 {[%clk 0:00:03]} 44. Nc6 {[%clk 0:00:04]}  d4 {[%clk 0:00:02]} 45. Nb8 {[%clk 0:00:03]}  Be6 {[%clk 0:00:02]} 46. Na6 {[%clk 0:00:01]}  Rc3 {[%clk 0:00:02]} 0-1


[Site "https://www.chess.com"]

[Event "Early Titled Tuesday Blitz | February 8 2022"]
[White "Pavlidou, Ekaterini"]
[Black "Minina, Veronika"]
[WhiteFideId "4213262"]
[BlackFideId "4174780"]
[WhiteElo "2127"]
[BlackElo "1850"]
[Result "1-0"]
[Round "03"]
[TimeControl "180+1"]
[Date "2022.02.08"]
[WhiteClock "0:00:51"]
[BlackClock "0:00:01"]

1. d4 {[%clk 0:03:00]}  Nf6 {[%clk 0:02:54]} 2. c4 {[%clk 0:03:00]}  g6 {[%clk 0:02:54]} 3. Nc3 {[%clk 0:02:59]}  Bg7 {[%clk 0:02:54]} 4. e4 {[%clk 0:03:00]}  d6 {[%clk 0:02:54]} 5. Nf3 {[%clk 0:02:59]}  O-O {[%clk 0:02:54]} 6. Be2 {[%clk 0:02:59]}  Bg4 {[%clk 0:02:52]} 7. Ng1 {[%clk 0:02:59]}  Bxe2 {[%clk 0:02:51]} 8. Ngxe2 {[%clk 0:02:59]}  a6 {[%clk 0:02:52]} 9. f3 {[%clk 0:02:57]}  c5 {[%clk 0:02:52]} 10. d5 {[%clk 0:02:57]}  b5 {[%clk 0:02:34]} 11. cxb5 {[%clk 0:02:55]}  axb5 {[%clk 0:02:35]} 12. Nxb5 {[%clk 0:02:55]}  Nfd7 {[%clk 0:02:31]} 13. Nbc3 {[%clk 0:02:51]}  Na6 {[%clk 0:02:20]} 14. Be3 {[%clk 0:02:49]}  Nc7 {[%clk 0:02:19]} 15. h4 {[%clk 0:02:48]}  Qb8 {[%clk 0:02:16]} 16. Qc2 {[%clk 0:02:41]}  Ne5 {[%clk 0:02:10]} 17. h5 {[%clk 0:02:41]}  Nc4 {[%clk 0:02:06]} 18. Bc1 {[%clk 0:02:39]}  Nb5 {[%clk 0:02:05]} 19. a4 {[%clk 0:02:17]}  Nd4 {[%clk 0:01:50]} 20. Nxd4 {[%clk 0:02:16]}  Bxd4 {[%clk 0:01:51]} 21. Nb5 {[%clk 0:02:14]}  Na5 {[%clk 0:00:51]} 22. Bh6 {[%clk 0:02:05]}  Rc8 {[%clk 0:00:48]} 23. g4 {[%clk 0:02:01]}  Be5 {[%clk 0:00:25]} 24. f4 {[%clk 0:01:58]}  Bf6 {[%clk 0:00:23]} 25. Bg5 {[%clk 0:01:55]}  Bg7 {[%clk 0:00:19]} 26. hxg6 {[%clk 0:01:43]}  fxg6 {[%clk 0:00:19]} 27. Qh2 {[%clk 0:01:42]}  Nb3 {[%clk 0:00:12]} 28. Qxh7+ {[%clk 0:01:31]}  Kf7 {[%clk 0:00:12]} 29. Bh6 {[%clk 0:01:23]}  Rg8 {[%clk 0:00:12]} 30. Ra3 {[%clk 0:01:21]}  Nd4 {[%clk 0:00:12]} 31. f5 {[%clk 0:01:15]}  Nf3+ {[%clk 0:00:07]} 32. Ke2 {[%clk 0:01:09]}  Nd4+ {[%clk 0:00:07]} 33. Kd1 {[%clk 0:01:00]}  Nxb5 {[%clk 0:00:05]} 34. fxg6+ {[%clk 0:00:59]}  Ke8 {[%clk 0:00:04]} 35. Qxg8+ {[%clk 0:00:57]}  Kd7 {[%clk 0:00:03]} 36. Qxb8 {[%clk 0:00:55]}  Rxb8 {[%clk 0:00:04]} 37. axb5 {[%clk 0:00:55]}  Bxb2 {[%clk 0:00:03]} 38. Ra7+ {[%clk 0:00:53]}  Ke8 {[%clk 0:00:02]} 39. Bc1 {[%clk 0:00:52]}  Rxb5 {[%clk 0:00:01]} 40. Bxb2 {[%clk 0:00:51]} 1-0


[Site "https://www.chess.com"]

[Event "Early Titled Tuesday Blitz | February 8 2022"]
[White "Pires, Marcos Vinicius Torsani"]
[Black "Roman, Rodrigo"]
[WhiteFideId "2118939"]
[BlackFideId "3701220"]
[WhiteElo "2273"]
[BlackElo "2001"]
[Result "1-0"]
[Round "03"]
[TimeControl "180+1"]
[Date "2022.02.08"]
[WhiteClock "0:00:41"]
[BlackClock "0:00:04"]

1. d4 {[%clk 0:02:58]}  Nf6 {[%clk 0:02:57]} 2. Bf4 {[%clk 0:02:56]}  d6 {[%clk 0:02:56]} 3. e3 {[%clk 0:02:56]}  g6 {[%clk 0:02:56]} 4. Nf3 {[%clk 0:02:56]}  Bg7 {[%clk 0:02:56]} 5. h3 {[%clk 0:02:56]}  O-O {[%clk 0:02:57]} 6. Be2 {[%clk 0:02:56]}  Nbd7 {[%clk 0:02:56]} 7. O-O {[%clk 0:02:57]}  b6 {[%clk 0:02:56]} 8. c4 {[%clk 0:02:55]}  Bb7 {[%clk 0:02:52]} 9. Nc3 {[%clk 0:02:56]}  e6 {[%clk 0:02:48]} 10. b4 {[%clk 0:02:50]}  Ne4 {[%clk 0:02:48]} 11. Nxe4 {[%clk 0:02:49]}  Bxe4 {[%clk 0:02:49]} 12. Nd2 {[%clk 0:02:50]}  Bb7 {[%clk 0:02:49]} 13. a4 {[%clk 0:02:49]}  a5 {[%clk 0:02:48]} 14. bxa5 {[%clk 0:02:48]}  Rxa5 {[%clk 0:02:48]} 15. Nb3 {[%clk 0:02:48]}  Ra8 {[%clk 0:02:49]} 16. a5 {[%clk 0:02:48]}  e5 {[%clk 0:02:47]} 17. Bg3 {[%clk 0:02:45]}  exd4 {[%clk 0:02:46]} 18. exd4 {[%clk 0:02:44]}  Re8 {[%clk 0:02:44]} 19. Bf3 {[%clk 0:02:42]}  Bxf3 {[%clk 0:02:40]} 20. Qxf3 {[%clk 0:02:43]}  bxa5 {[%clk 0:02:39]} 21. Rxa5 {[%clk 0:02:35]}  Rxa5 {[%clk 0:02:39]} 22. Nxa5 {[%clk 0:02:36]}  Bxd4 {[%clk 0:02:38]} 23. Nc6 {[%clk 0:02:18]}  Qf6 {[%clk 0:01:37]} 24. Qg4 {[%clk 0:02:17]}  Nb6 {[%clk 0:01:19]} 25. Qxd4 {[%clk 0:02:02]}  Qxd4 {[%clk 0:01:18]} 26. Nxd4 {[%clk 0:02:03]}  Nxc4 {[%clk 0:01:19]} 27. Nb5 {[%clk 0:02:04]}  d5 {[%clk 0:00:59]} 28. Nxc7 {[%clk 0:02:01]}  Rd8 {[%clk 0:00:59]} 29. Nb5 {[%clk 0:01:34]}  d4 {[%clk 0:00:57]} 30. Rd1 {[%clk 0:01:31]}  d3 {[%clk 0:00:57]} 31. Nc3 {[%clk 0:01:30]}  Nb2 {[%clk 0:00:51]} 32. Rb1 {[%clk 0:01:28]}  Nc4 {[%clk 0:00:19]} 33. Bf4 {[%clk 0:01:22]}  d2 {[%clk 0:00:14]} 34. Nd1 {[%clk 0:01:21]}  Re8 {[%clk 0:00:13]} 35. Be3 {[%clk 0:01:11]}  f5 {[%clk 0:00:12]} 36. g3 {[%clk 0:01:10]}  g5 {[%clk 0:00:12]} 37. Rb4 {[%clk 0:01:03]}  Nxe3 {[%clk 0:00:11]} 38. fxe3 {[%clk 0:01:02]}  f4 {[%clk 0:00:08]} 39. gxf4 {[%clk 0:01:02]}  Rc8 {[%clk 0:00:08]} 40. Rd4 {[%clk 0:01:00]}  gxf4 {[%clk 0:00:08]} 41. exf4 {[%clk 0:01:00]}  Rc2 {[%clk 0:00:07]} 42. Kf2 {[%clk 0:00:59]}  Kf7 {[%clk 0:00:07]} 43. Ke2 {[%clk 0:01:00]}  Rc7 {[%clk 0:00:07]} 44. Rxd2 {[%clk 0:01:00]}  Kf6 {[%clk 0:00:07]} 45. Kf3 {[%clk 0:00:59]}  Kf5 {[%clk 0:00:08]} 46. Ne3+ {[%clk 0:00:59]}  Kg6 {[%clk 0:00:07]} 47. Rd6+ {[%clk 0:00:59]}  Kh5 {[%clk 0:00:07]} 48. Rd5+ {[%clk 0:00:57]}  Kg6 {[%clk 0:00:07]} 49. f5+ {[%clk 0:00:57]}  Kg5 {[%clk 0:00:06]} 50. Rd4 {[%clk 0:00:54]}  Rc3 {[%clk 0:00:04]} 51. Rg4+ {[%clk 0:00:54]}  Kf6 {[%clk 0:00:05]} 52. Kf4 {[%clk 0:00:52]}  Ra3 {[%clk 0:00:06]} 53. Nd5+ {[%clk 0:00:51]}  Kf7 {[%clk 0:00:06]} 54. Ne3 {[%clk 0:00:51]}  Kf6 {[%clk 0:00:05]} 55. Kf3 {[%clk 0:00:49]}  Kf7 {[%clk 0:00:03]} 56. Rb4 {[%clk 0:00:49]}  Kf6 {[%clk 0:00:03]} 57. Rb6+ {[%clk 0:00:49]}  Kg5 {[%clk 0:00:03]} 58. f6 {[%clk 0:00:49]}  Kg6 {[%clk 0:00:02]} 59. Ke4 {[%clk 0:00:47]}  Ra4+ {[%clk 0:00:02]} 60. Ke5 {[%clk 0:00:47]}  Ra5+ {[%clk 0:00:03]} 61. Nd5 {[%clk 0:00:47]}  Ra8 {[%clk 0:00:04]} 62. Nf4+ {[%clk 0:00:46]}  Kf7 {[%clk 0:00:04]} 63. Rb7+ {[%clk 0:00:47]}  Kf8 {[%clk 0:00:05]} 64. Ne6+ {[%clk 0:00:47]}  Kg8 {[%clk 0:00:05]} 65. f7+ {[%clk 0:00:47]}  Kh8 {[%clk 0:00:06]} 66. Re7 {[%clk 0:00:43]}  h6 {[%clk 0:00:03]} 67. Re8+ {[%clk 0:00:43]}  Kh7 {[%clk 0:00:03]} 68. Rxa8 {[%clk 0:00:41]}  h5 {[%clk 0:00:04]} 69. f8=Q {[%clk 0:00:41]}  h4 {[%clk 0:00:04]} 70. Qg7# {[%clk 0:00:41]} 1-0


[Site "https://www.chess.com"]

[Event "Early Titled Tuesday Blitz | February 8 2022"]
[White "Potapova, Margarita"]
[Black "Sahil, Tickoo"]
[WhiteFideId "14126869"]
[BlackFideId "5019710"]
[WhiteElo "2209"]
[BlackElo "2099"]
[Result "0-1"]
[Round "03"]
[TimeControl "180+1"]
[Date "2022.02.08"]
[WhiteClock "0:00:02"]
[BlackClock "0:00:39"]

1. e4 {[%clk 0:02:52]}  c5 {[%clk 0:02:59]} 2. Nf3 {[%clk 0:02:52]}  d6 {[%clk 0:02:59]} 3. d4 {[%clk 0:02:49]}  cxd4 {[%clk 0:03:00]} 4. Qxd4 {[%clk 0:02:50]}  Nc6 {[%clk 0:02:59]} 5. Bb5 {[%clk 0:02:50]}  Bd7 {[%clk 0:02:59]} 6. Bxc6 {[%clk 0:02:50]}  Bxc6 {[%clk 0:03:00]} 7. Nc3 {[%clk 0:02:51]}  Nf6 {[%clk 0:02:58]} 8. Bg5 {[%clk 0:02:51]}  e6 {[%clk 0:02:58]} 9. O-O-O {[%clk 0:02:52]}  Be7 {[%clk 0:02:57]} 10. Kb1 {[%clk 0:02:24]}  O-O {[%clk 0:02:55]} 11. Rhe1 {[%clk 0:02:19]}  Qc7 {[%clk 0:02:51]} 12. h3 {[%clk 0:02:10]}  Rfc8 {[%clk 0:02:40]} 13. g4 {[%clk 0:02:09]}  b5 {[%clk 0:02:37]} 14. Bc1 {[%clk 0:02:06]}  a5 {[%clk 0:02:33]} 15. g5 {[%clk 0:02:00]}  Nd7 {[%clk 0:02:27]} 16. Re2 {[%clk 0:01:08]}  b4 {[%clk 0:02:25]} 17. Nd5 {[%clk 0:01:04]}  Bxd5 {[%clk 0:02:17]} 18. exd5 {[%clk 0:01:01]}  e5 {[%clk 0:02:17]} 19. Qg4 {[%clk 0:00:56]}  a4 {[%clk 0:02:04]} 20. Qg1 {[%clk 0:00:43]}  b3 {[%clk 0:01:55]} 21. cxb3 {[%clk 0:00:42]}  axb3 {[%clk 0:01:54]} 22. a3 {[%clk 0:00:43]}  Nc5 {[%clk 0:01:42]} 23. Nh4 {[%clk 0:00:27]}  Na4 {[%clk 0:01:39]} 24. Nf5 {[%clk 0:00:23]}  Bf8 {[%clk 0:01:39]} 25. f4 {[%clk 0:00:21]}  Qc4 {[%clk 0:01:38]} 26. Qf2 {[%clk 0:00:14]}  exf4 {[%clk 0:01:22]} 27. Bxf4 {[%clk 0:00:10]}  Re8 {[%clk 0:00:54]} 28. Rxe8 {[%clk 0:00:04]}  Rxe8 {[%clk 0:00:54]} 29. Qd2 {[%clk 0:00:01]}  Qe4+ {[%clk 0:00:52]} 30. Qd3 {[%clk 0:00:02]}  Qxf4 {[%clk 0:00:51]} 31. Nd4 {[%clk 0:00:01]}  Nc5 {[%clk 0:00:48]} 32. Qc4 {[%clk 0:00:01]}  Qe4+ {[%clk 0:00:47]} 33. Ka1 {[%clk 0:00:01]}  g6 {[%clk 0:00:45]} 34. Qc1 {[%clk 0:00:01]}  Bg7 {[%clk 0:00:45]} 35. Nc6 {[%clk 0:00:02]}  Na4 {[%clk 0:00:42]} 36. Re1 {[%clk 0:00:02]}  Qxe1 {[%clk 0:00:40]} 37. Ne7+ {[%clk 0:00:01]}  Rxe7 {[%clk 0:00:39]} 38. Qb1 {[%clk 0:00:02]} 0-1


[Site "https://www.chess.com"]

[Event "Early Titled Tuesday Blitz | February 8 2022"]
[White "Prieto Aranguren, Alain"]
[Black "Azadaliyev, Jahandar"]
[WhiteFideId "2268906"]
[BlackFideId "13425811"]
[WhiteElo "2235"]
[BlackElo "1795"]
[Result "1-0"]
[Round "03"]
[TimeControl "180+1"]
[Date "2022.02.08"]
[WhiteClock "0:00:05"]
[BlackClock "0:00:49"]

1. e4 {[%clk 0:03:00]}  c6 {[%clk 0:02:59]} 2. b4 {[%clk 0:02:58]}  d5 {[%clk 0:03:00]} 3. e5 {[%clk 0:02:57]}  Bf5 {[%clk 0:03:00]} 4. g4 {[%clk 0:02:56]}  Bd7 {[%clk 0:02:58]} 5. Ne2 {[%clk 0:02:52]}  e6 {[%clk 0:02:58]} 6. c3 {[%clk 0:02:50]}  Nh6 {[%clk 0:02:56]} 7. Ng3 {[%clk 0:02:48]}  Be7 {[%clk 0:02:54]} 8. d4 {[%clk 0:02:06]}  a5 {[%clk 0:02:52]} 9. Bd2 {[%clk 0:01:55]}  axb4 {[%clk 0:02:52]} 10. cxb4 {[%clk 0:01:52]}  Qb6 {[%clk 0:02:53]} 11. Bc3 {[%clk 0:01:44]}  Bxb4 {[%clk 0:02:52]} 12. Be2 {[%clk 0:01:43]}  c5 {[%clk 0:02:47]} 13. dxc5 {[%clk 0:01:40]}  Bxc5 {[%clk 0:02:46]} 14. O-O {[%clk 0:01:37]}  Nc6 {[%clk 0:02:44]} 15. Nd2 {[%clk 0:01:34]}  O-O {[%clk 0:02:44]} 16. Nb3 {[%clk 0:01:30]}  Bb4 {[%clk 0:02:39]} 17. Bxb4 {[%clk 0:01:28]}  Nxb4 {[%clk 0:02:40]} 18. g5 {[%clk 0:01:21]}  Nf5 {[%clk 0:02:39]} 19. Nxf5 {[%clk 0:01:20]}  exf5 {[%clk 0:02:39]} 20. Qd2 {[%clk 0:01:08]}  Be6 {[%clk 0:02:32]} 21. Rfc1 {[%clk 0:01:03]}  Nc6 {[%clk 0:02:31]} 22. Rab1 {[%clk 0:01:00]}  Qa7 {[%clk 0:02:29]} 23. Nc5 {[%clk 0:00:57]}  Qxa2 {[%clk 0:02:26]} 24. Rb2 {[%clk 0:00:57]}  Qa3 {[%clk 0:02:18]} 25. Rc3 {[%clk 0:00:54]}  Qa5 {[%clk 0:02:13]} 26. Nxb7 {[%clk 0:00:51]}  Qa4 {[%clk 0:01:53]} 27. Nc5 {[%clk 0:00:49]}  Qh4 {[%clk 0:01:18]} 28. Nxe6 {[%clk 0:00:49]}  fxe6 {[%clk 0:01:19]} 29. Rxc6 {[%clk 0:00:48]}  Ra1+ {[%clk 0:01:19]} 30. Rc1 {[%clk 0:00:36]}  Rxc1+ {[%clk 0:01:18]} 31. Qxc1 {[%clk 0:00:35]}  f4 {[%clk 0:01:19]} 32. Qc7 {[%clk 0:00:21]}  Qxg5+ {[%clk 0:01:18]} 33. Kh1 {[%clk 0:00:21]}  h5 {[%clk 0:01:08]} 34. f3 {[%clk 0:00:16]}  h4 {[%clk 0:01:08]} 35. Bd3 {[%clk 0:00:15]}  Qh5 {[%clk 0:01:06]} 36. Rg2 {[%clk 0:00:13]}  Qh6 {[%clk 0:00:56]} 37. Qd7 {[%clk 0:00:11]}  Ra8 {[%clk 0:00:49]} 38. Bf1 {[%clk 0:00:09]}  Ra1 {[%clk 0:00:48]} 39. Qe8+ {[%clk 0:00:08]}  Kh7 {[%clk 0:00:49]} 40. Rg1 {[%clk 0:00:08]}  h3 {[%clk 0:00:49]} 41. Bd3+ {[%clk 0:00:08]}  g6 {[%clk 0:00:49]} 42. Rxa1 {[%clk 0:00:06]}  Qg5 {[%clk 0:00:49]} 43. Ra7+ {[%clk 0:00:05]}  Kh6 {[%clk 0:00:49]} 44. Qh8# {[%clk 0:00:05]} 1-0


[Site "https://www.chess.com"]